fUSD/lending_fUSD_20260517
["ID","MTS","AMOUNT","RATE_DAILY","PERIOD"]
[422444207,1778950247000,-1147.52562491,0.00036266,2]
[422444180,1778950247000,-300.0,0.00036266,2]
[422444192,1778950247000,-300.66230964,0.00036266,2]
[422444146,1778950247000,-216.0,0.00036138,30]
[422444151,1778950247000,-328.0,0.00036164,2]
[422444153,1778950247000,-300.0,0.00036266,2]
[422444163,1778950247000,-300.0,0.00036266,2]
[422444165,1778950247000,-300.0,0.00036266,2]
[422444152,1778950247000,-300.0,0.00036266,2]
[422444164,1778950247000,-300.0,0.00036266,2]
[422444154,1778950247000,-300.0,0.00036266,2]
[422444158,1778950247000,-300.0,0.00036266,2]
[422444162,1778950247000,-300.0,0.00036266,2]
[422444157,1778950247000,-300.0,0.00036266,2]
[422444160,1778950247000,-1095.07136273,0.00036266,2]
[422444159,1778950247000,-300.0,0.00036266,2]
[422444156,1778950247000,-300.0,0.00036266,2]
[422444147,1778950247000,-172.0,0.00036138,30]
[422444161,1778950247000,-300.0,0.00036266,2]
[422444155,1778950247000,-1127.79186826,0.00036266,2]
[422444172,1778950247000,-300.0,0.00036266,2]
[422444173,1778950247000,-300.0,0.00036266,2]
[422444169,1778950247000,-300.0,0.00036266,2]
[422444174,1778950247000,-492.84022017,0.00036266,2]
[422444170,1778950247000,-300.0,0.00036266,2]
[422444171,1778950247000,-300.0,0.00036266,2]
[422444176,1778950247000,-300.0,0.00036266,2]
[422444167,1778950247000,-300.0,0.00036266,2]
[422444178,1778950247000,-300.0,0.00036266,2]
[422444166,1778950247000,-300.0,0.00036266,2]
[422444190,1778950247000,-300.0,0.00036266,2]
[422444177,1778950247000,-300.0,0.00036266,2]
[422444175,1778950247000,-300.0,0.00036266,2]
[422444168,1778950247000,-300.0,0.00036266,2]
[422444243,1778950248000,-300.0,0.00036266,2]
[422444258,1778950248000,-300.0,0.00036266,2]
[422444241,1778950248000,-300.0,0.00036266,2]
[422444248,1778950248000,-303.48657379,0.00036266,2]
[422444251,1778950248000,-300.0,0.00036266,2]
[422444252,1778950248000,-300.0,0.00036266,2]
[422444253,1778950248000,-300.0,0.00036266,2]
[422444260,1778950248000,-300.0,0.00036266,2]
[422444259,1778950248000,-604.63991303,0.00036266,2]
[422444256,1778950248000,-300.0,0.00036266,2]
[422444261,1778950248000,-300.0,0.00036266,2]
[422444249,1778950248000,-300.0,0.00036266,2]
[422444250,1778950248000,-300.0,0.00036266,2]
[422444262,1778950248000,-300.0,0.00036266,2]
[422444254,1778950248000,-492.84022017,0.00036266,2]
[422444257,1778950248000,-300.0,0.00036266,2]
[422444263,1778950248000,-527.89629163,0.00036266,2]
[422444274,1778950248000,-300.0,0.00036266,2]
[422444266,1778950248000,-893.66998664,0.00036266,2]
[422444264,1778950248000,-300.0,0.00036266,2]
[422444273,1778950248000,-528.81395582,0.00036266,2]
[422444275,1778950248000,-300.0,0.00036266,2]
[422444265,1778950248000,-1067.23644452,0.00036266,2]
[422444272,1778950248000,-300.66230964,0.00036266,2]
[422444238,1778950248000,-300.0,0.00036266,2]
[422444268,1778950248000,-300.0,0.00036266,2]
[422444255,1778950248000,-300.0,0.00036266,2]
[422444245,1778950248000,-300.0,0.00036266,2]
[422444230,1778950248000,-484.23291958,0.00036266,2]
[422444235,1778950248000,-1127.79186826,0.00036266,2]
[422444271,1778950248000,-300.0,0.00036266,2]
[422444218,1778950248000,-300.38225211,0.00036266,2]
[422444220,1778950248000,-300.0,0.00036266,2]
[422444219,1778950248000,-463.98731895,0.00036266,2]
[422444216,1778950248000,-310.99730567,0.00036266,2]
[422444215,1778950248000,-300.0,0.00036266,2]
[422444217,1778950248000,-300.0,0.00036266,2]
[422444221,1778950248000,-577.38521552,0.00036266,2]
[422444224,1778950248000,-300.0,0.00036266,2]
[422444226,1778950248000,-300.0,0.00036266,2]
[422444223,1778950248000,-452.04263183,0.00036266,2]
[422444225,1778950248000,-300.0,0.00036266,2]
[422444227,1778950248000,-300.0,0.00036266,2]
[422444228,1778950248000,-300.0,0.00036266,2]
[422444222,1778950248000,-300.0,0.00036266,2]
[422444231,1778950248000,-309.92123961,0.00036266,2]
[422444229,1778950248000,-300.0,0.00036266,2]
[422444232,1778950248000,-300.0,0.00036266,2]
[422444233,1778950248000,-300.0,0.00036266,2]
[422444234,1778950248000,-300.0,0.00036266,2]
[422444236,1778950248000,-300.0,0.00036266,2]
[422444242,1778950248000,-300.0,0.00036266,2]
[422444247,1778950248000,-300.0,0.00036266,2]
[422444237,1778950248000,-300.0,0.00036266,2]
[422444240,1778950248000,-1095.07136273,0.00036266,2]
[422444239,1778950248000,-300.0,0.00036266,2]
[422444244,1778950248000,-300.0,0.00036266,2]
[422444246,1778950248000,-300.0,0.00036266,2]
[422444270,1778950248000,-300.0,0.00036266,2]
[422444276,1778950248000,-300.0,0.00036266,2]
[422444269,1778950248000,-301.8794073,0.00036266,2]
[422444317,1778950248000,-1197.37903538,0.00036832,2]
[422444308,1778950248000,-300.0,0.00036266,2]
[422444307,1778950248000,-300.0,0.00036266,2]
[422444310,1778950248000,-484.23291958,0.00036266,2]
[422444309,1778950248000,-300.0,0.00036266,2]
[422444312,1778950248000,-504.0,0.00036498,12]
[422444313,1778950248000,-163.0,0.00036568,11]
[422444315,1778950248000,-1000.0,0.00036747,12]
[422444314,1778950248000,-288.0,0.00036575,30]
[422444311,1778950248000,-190.14236049,0.00036327,2]
[422444318,1778950248000,-350.0,0.00036839,2]
[422444326,1778950248000,-350.0,0.00036839,2]
[422444324,1778950248000,-350.0,0.00036839,2]
[422444327,1778950248000,-192.0,0.00036839,2]
[422444319,1778950248000,-350.0,0.00036839,2]
[422444329,1778950248000,-387.6355,0.00036886,2]
[422444322,1778950248000,-350.0,0.00036839,2]
[422444321,1778950248000,-350.0,0.00036839,2]
[422444328,1778950248000,-350.0,0.00036849,5]
[422444323,1778950248000,-350.0,0.00036839,2]
[422444325,1778950248000,-350.0,0.00036839,2]
[422444330,1778950248000,-8317.9555,0.00036886,2]
[422444332,1778950248000,-501.118191,0.00036955,120]
[422444333,1778950248000,-500.0,0.00036955,120]
[422444331,1778950248000,-2101.01973552,0.00036954,7]
[422444334,1778950248000,-1341.887911,0.00036971,7]
[422444267,1778950248000,-726.26438584,0.00036266,2]
[422444305,1778950248000,-300.0,0.00036266,2]
[422444316,1778950248000,-339.9254401,0.00036778,2]
[422444320,1778950248000,-350.0,0.00036839,2]
[422444303,1778950248000,-452.04263183,0.00036266,2]
[422444306,1778950248000,-300.0,0.00036266,2]
[422444280,1778950248000,-1912.98732614,0.00036266,2]
[422444278,1778950248000,-949.2762563,0.00036266,2]
[422444279,1778950248000,-300.0,0.00036266,2]
[422444283,1778950248000,-527.04605611,0.00036266,2]
[422444288,1778950248000,-309.68315104,0.00036266,2]
[422444281,1778950248000,-300.0,0.00036266,2]
[422444282,1778950248000,-344.08088588,0.00036266,2]
[422444287,1778950248000,-1147.52562491,0.00036266,2]
[422444277,1778950248000,-300.0,0.00036266,2]
[422444289,1778950248000,-300.0,0.00036266,2]
[422444285,1778950248000,-300.0,0.00036266,2]
[422444284,1778950248000,-300.0,0.00036266,2]
[422444291,1778950248000,-300.0,0.00036266,2]
[422444286,1778950248000,-300.0,0.00036266,2]
[422444301,1778950248000,-577.38521552,0.00036266,2]
[422444290,1778950248000,-864.71533708,0.00036266,2]
[422444304,1778950248000,-300.0,0.00036266,2]
[422444302,1778950248000,-300.0,0.00036266,2]
[422444300,1778950248000,-300.0,0.00036266,2]
[422444299,1778950248000,-463.98731895,0.00036266,2]
[422444292,1778950248000,-1791.04776837,0.00036266,2]
[422444297,1778950248000,-300.0,0.00036266,2]
[422444294,1778950248000,-300.0,0.00036266,2]
[422444295,1778950248000,-300.0,0.00036266,2]
[422444298,1778950248000,-300.0,0.00036266,2]
[422444293,1778950248000,-300.0,0.00036266,2]
[422444296,1778950248000,-310.99730567,0.00036266,2]
[422444372,1778950249000,-2000.0,0.0003709,2]
[422444378,1778950249000,-2000.0,0.0003709,2]
[422444374,1778950249000,-2000.0,0.0003709,2]
[422444375,1778950249000,-2000.0,0.0003709,2]
[422444371,1778950249000,-504.0,0.00037049,12]
[422444373,1778950249000,-2000.0,0.0003709,2]
[422444369,1778950249000,-500.0,0.00037017,2]
[422444370,1778950249000,-757.0,0.00037017,2]
[422444379,1778950249000,-2000.0,0.0003709,2]
[422444380,1778950249000,-2000.0,0.0003709,2]
[422444368,1778950249000,-500.0,0.00037017,2]
[422444376,1778950249000,-2000.0,0.0003709,2]
[422444377,1778950249000,-2000.0,0.0003709,2]
[422444381,1778950249000,-2000.0,0.0003709,2]
[422444398,1778950249000,-4523.3975716,0.00037627,2]
[422444393,1778950249000,-504.0,0.00037599,13]
[422444384,1778950249000,-8317.9555,0.00037149,2]
[422444383,1778950249000,-5800.0,0.00037115,2]
[422444382,1778950249000,-314.06,0.000371,7]
[422444386,1778950249000,-8317.9555,0.00037281,2]
[422444385,1778950249000,-776.79,0.000372,30]
[422444391,1778950249000,-354.0,0.00037537,30]
[422444389,1778950249000,-150.0,0.00037485,2]
[422444387,1778950249000,-8317.9555,0.00037413,2]
[422444388,1778950249000,-287.0,0.00037485,2]
[422444394,1778950249000,-1000.0,0.00037615,2]
[422444395,1778950249000,-1000.0,0.00037615,2]
[422444365,1778950249000,-500.0,0.00037017,2]
[422444392,1778950249000,-8317.9555,0.00037544,2]
[422444364,1778950249000,-500.0,0.00037017,2]
[422444340,1778950249000,-500.0,0.00037017,2]
[422444359,1778950249000,-500.0,0.00037017,2]
[422444396,1778950249000,-400.0,0.00037615,2]
[422444337,1778950249000,-277.58,0.00036972,120]
[422444339,1778950249000,-8317.9555,0.00037017,2]
[422444335,1778950249000,-1707.13999807,0.00036971,7]
[422444342,1778950249000,-500.0,0.00037017,2]
[422444341,1778950249000,-500.0,0.00037017,2]
[422444338,1778950249000,-342.39213103,0.00037,2]
[422444336,1778950249000,-1582.2097478,0.00036971,2]
[422444344,1778950249000,-500.0,0.00037017,2]
[422444343,1778950249000,-500.0,0.00037017,2]
[422444345,1778950249000,-500.0,0.00037017,2]
[422444354,1778950249000,-500.0,0.00037017,2]
[422444347,1778950249000,-500.0,0.00037017,2]
[422444346,1778950249000,-500.0,0.00037017,2]
[422444352,1778950249000,-500.0,0.00037017,2]
[422444350,1778950249000,-500.0,0.00037017,2]
[422444349,1778950249000,-500.0,0.00037017,2]
[422444348,1778950249000,-500.0,0.00037017,2]
[422444351,1778950249000,-500.0,0.00037017,2]
[422444353,1778950249000,-500.0,0.00037017,2]
[422444356,1778950249000,-500.0,0.00037017,2]
[422444355,1778950249000,-500.0,0.00037017,2]
[422444367,1778950249000,-500.0,0.00037017,2]
[422444363,1778950249000,-500.0,0.00037017,2]
[422444360,1778950249000,-500.0,0.00037017,2]
[422444358,1778950249000,-500.0,0.00037017,2]
[422444357,1778950249000,-500.0,0.00037017,2]
[422444361,1778950249000,-500.0,0.00037017,2]
[422444366,1778950249000,-500.0,0.00037017,2]
[422444362,1778950249000,-500.0,0.00037017,2]
[422444397,1778950249000,-400.0,0.00037615,2]
[422444390,1778950249000,-247.0,0.00037485,2]
[422444401,1778950249000,-8317.9555,0.00037676,2]
[422444428,1778950249000,-300.0,0.00038253,2]
[422444436,1778950249000,-600.0,0.00038281,120]
[422444435,1778950249000,-600.0,0.00038281,120]
[422444438,1778950249000,-600.0,0.00038281,120]
[422444437,1778950249000,-600.0,0.00038281,120]
[422444439,1778950249000,-600.0,0.00038281,120]
[422444440,1778950249000,-600.0,0.00038281,120]
[422444444,1778950249000,-600.0,0.00038281,120]
[422444442,1778950249000,-600.0,0.00038281,120]
[422444446,1778950249000,-600.0,0.00038281,120]
[422444443,1778950249000,-600.0,0.00038281,120]
[422444441,1778950249000,-600.0,0.00038281,120]
[422444447,1778950249000,-600.0,0.00038281,120]
[422444448,1778950249000,-600.0,0.00038281,120]
[422444451,1778950249000,-600.0,0.00038281,120]
[422444450,1778950249000,-600.0,0.00038281,120]
[422444449,1778950249000,-600.0,0.00038281,120]
[422444452,1778950249000,-600.0,0.00038281,120]
[422444453,1778950249000,-600.0,0.00038281,120]
[422444454,1778950249000,-600.0,0.00038281,120]
[422444455,1778950249000,-600.0,0.00038281,120]
[422444456,1778950249000,-600.0,0.00038281,120]
[422444457,1778950249000,-664.1382358,0.00038281,120]
[422444458,1778950249000,-8317.9555,0.00038335,2]
[422444459,1778950249000,-152.0,0.000384,120]
[422444461,1778950249000,-207.00079474,0.00038457,2]
[422444460,1778950249000,-340.11462117,0.00038433,2]
[422444463,1778950249000,-8317.9555,0.00038598,2]
[422444399,1778950249000,-221.53,0.00037652,30]
[422444427,1778950249000,-300.0,0.00038253,2]
[422444429,1778950249000,-300.0,0.00038253,2]
[422444445,1778950249000,-600.0,0.00038281,120]
[422444433,1778950249000,-600.0,0.00038281,120]
[422444430,1778950249000,-300.0,0.00038253,2]
[422444400,1778950249000,-738.44,0.00037652,2]
[422444402,1778950249000,-150.0,0.00037694,2]
[422444405,1778950249000,-8317.9555,0.00037808,2]
[422444404,1778950249000,-387.6355,0.00037808,2]
[422444462,1778950249000,-8317.9555,0.00038467,2]
[422444403,1778950249000,-284.12412572,0.00037753,120]
[422444408,1778950249000,-1197.37903538,0.00037832,2]
[422444418,1778950249000,-725.23578601,0.000381,30]
[422444407,1778950249000,-1000.0,0.00037815,13]
[422444416,1778950249000,-9368.3861182,0.000381,33]
[422444417,1778950249000,-725.23578603,0.000381,30]
[422444420,1778950249000,-151.0,0.00038125,30]
[422444419,1778950249000,-725.23578601,0.000381,30]
[422444409,1778950249000,-8317.9555,0.0003794,2]
[422444406,1778950249000,-350.0,0.00037808,5]
[422444411,1778950249000,-342.0,0.00038,30]
[422444413,1778950249000,-206.205718,0.00038,15]
[422444425,1778950249000,-8317.9555,0.00038203,2]
[422444431,1778950249000,-300.0,0.00038253,2]
[422444426,1778950249000,-300.0,0.00038253,2]
[422444424,1778950249000,-1346.15057808,0.000382,30]
[422444434,1778950249000,-600.0,0.00038281,120]
[422444421,1778950249000,-504.0,0.0003815,14]
[422444432,1778950249000,-309.34,0.00038253,2]
[422444422,1778950249000,-1346.1505781,0.000382,30]
[422444415,1778950249000,-1000.0,0.00038099,33]
[422444410,1778950249000,-151.0,0.00038,120]
[422444414,1778950249000,-8317.9555,0.00038071,2]
[422444412,1778950249000,-152.0,0.00038,120]
[422444423,1778950249000,-1346.15057808,0.000382,30]
[422444507,1778950250000,-200.0,0.00039557,2]
[422444510,1778950250000,-200.0,0.00039557,2]
[422444502,1778950250000,-200.0,0.00039557,2]
[422444505,1778950250000,-200.0,0.00039557,2]
[422444498,1778950250000,-200.0,0.00039557,2]
[422444509,1778950250000,-200.0,0.00039557,2]
[422444503,1778950250000,-200.0,0.00039557,2]
[422444511,1778950250000,-200.0,0.00039557,2]
[422444504,1778950250000,-200.0,0.00039557,2]
[422444501,1778950250000,-200.0,0.00039557,2]
[422444500,1778950250000,-200.0,0.00039557,2]
[422444506,1778950250000,-200.0,0.00039557,2]
[422444512,1778950250000,-156.0,0.00039557,2]
[422444508,1778950250000,-200.0,0.00039557,2]
[422444515,1778950250000,-200.0,0.00039557,2]
[422444520,1778950250000,-200.0,0.00039557,2]
[422444518,1778950250000,-200.0,0.00039557,2]
[422444521,1778950250000,-200.0,0.00039557,2]
[422444513,1778950250000,-200.0,0.00039557,2]
[422444519,1778950250000,-200.0,0.00039557,2]
[422444516,1778950250000,-200.0,0.00039557,2]
[422444522,1778950250000,-200.0,0.00039557,2]
[422444517,1778950250000,-200.0,0.00039557,2]
[422444524,1778950250000,-200.0,0.00039557,2]
[422444523,1778950250000,-200.0,0.00039557,2]
[422444525,1778950250000,-200.0,0.00039557,2]
[422444534,1778950250000,-200.0,0.00039557,2]
[422444526,1778950250000,-200.0,0.00039557,2]
[422444489,1778950250000,-2556.03381614,0.00039281,11]
[422444514,1778950250000,-200.0,0.00039557,2]
[422444492,1778950250000,-1291.0,0.000395,30]
[422444469,1778950250000,-350.0,0.00038767,5]
[422444487,1778950250000,-182.88165657,0.00039196,2]
[422444470,1778950250000,-798.25269025,0.00038832,7]
[422444472,1778950250000,-182.88165657,0.00038896,2]
[422444466,1778950250000,-387.6357,0.0003873,2]
[422444465,1778950250000,-504.0,0.00038701,14]
[422444473,1778950250000,-152.0,0.000389,120]
[422444467,1778950250000,-8317.9564,0.0003873,2]
[422444468,1778950250000,-199.56317256,0.00038766,7]
[422444464,1778950250000,-776.79,0.000386,30]
[422444471,1778950250000,-12691.11304761,0.00038834,2]
[422444475,1778950250000,-1354.0,0.00038941,2]
[422444476,1778950250000,-625.0,0.00038941,2]
[422444474,1778950250000,-2000.0,0.000389,7]
[422444477,1778950250000,-1223.0,0.00038941,2]
[422444478,1778950250000,-417.0,0.00038941,2]
[422444495,1778950250000,-200.0,0.00039557,2]
[422444485,1778950250000,-1000.0,0.00039183,2]
[422444481,1778950250000,-342.0,0.00039,30]
[422444482,1778950250000,-1000.0,0.00039,30]
[422444480,1778950250000,-182.88165657,0.00038996,2]
[422444483,1778950250000,-182.88165657,0.00039096,2]
[422444484,1778950250000,-151.0,0.000391,120]
[422444479,1778950250000,-3631.0,0.00038941,2]
[422444493,1778950250000,-1569.946778,0.000395,32]
[422444497,1778950250000,-200.0,0.00039557,2]
[422444499,1778950250000,-200.0,0.00039557,2]
[422444488,1778950250000,-504.0,0.00039251,15]
[422444490,1778950250000,-152.0,0.000393,120]
[422444491,1778950250000,-500.0,0.00039481,120]
[422444496,1778950250000,-200.0,0.00039557,2]
[422444494,1778950250000,-354.11,0.0003951,30]
[422444486,1778950250000,-400.0,0.00039183,2]
[422444536,1778950250000,-200.0,0.00039557,2]
[422444535,1778950250000,-200.0,0.00039557,2]
[422444538,1778950250000,-200.0,0.00039557,2]
[422444568,1778950250000,-200.0,0.0004,19]
[422444567,1778950250000,-1000.0,0.0004,60]
[422444569,1778950250000,-1500.0,0.0004,32]
[422444580,1778950250000,-1000.0,0.00040189,20]
[422444578,1778950250000,-150.0,0.00040117,2]
[422444570,1778950250000,-2363.64720246,0.00040012,7]
[422444571,1778950250000,-1509.62389988,0.0004003,7]
[422444579,1778950250000,-350.0,0.00040177,2]
[422444573,1778950250000,-1779.98596628,0.0004003,2]
[422444575,1778950250000,-1585.0,0.00040059,11]
[422444577,1778950250000,-2104.65,0.00040071,2]
[422444572,1778950250000,-1920.53249783,0.0004003,7]
[422444574,1778950250000,-339.9254401,0.0004005,2]
[422444581,1778950250000,-1000.0,0.00040199,28]
[422444564,1778950250000,-1000.0,0.00039999,90]
[422444582,1778950250000,-1000.0,0.00040199,41]
[422444583,1778950250000,-1000.0,0.00040199,19]
[422444584,1778950250000,-1224.66499459,0.000402,60]
[422444593,1778950250000,-404.0,0.00040266,120]
[422444592,1778950250000,-159.0,0.00040266,120]
[422444588,1778950250000,-152.0,0.00040259,30]
[422444586,1778950250000,-152.0,0.000402,120]
[422444585,1778950250000,-151.0,0.000402,120]
[422444590,1778950250000,-154.0,0.00040266,120]
[422444591,1778950250000,-166.0,0.00040266,120]
[422444587,1778950250000,-407.91052812,0.00040251,2]
[422444589,1778950250000,-152.0,0.00040259,30]
[422444595,1778950250000,-162.0,0.00040266,120]
[422444596,1778950250000,-169.0,0.00040266,120]
[422444530,1778950250000,-200.0,0.00039557,2]
[422444594,1778950250000,-516.0,0.00040266,120]
[422444561,1778950250000,-153.16793018,0.00039863,30]
[422444576,1778950250000,-152.0,0.00040067,30]
[422444554,1778950250000,-547.24,0.00039726,5]
[422444550,1778950250000,-150.0,0.00039579,2]
[422444553,1778950250000,-152.0,0.000397,7]
[422444541,1778950250000,-200.0,0.00039557,2]
[422444551,1778950250000,-1000.0,0.00039645,4]
[422444543,1778950250000,-200.0,0.00039557,2]
[422444540,1778950250000,-200.0,0.00039557,2]
[422444542,1778950250000,-200.0,0.00039557,2]
[422444532,1778950250000,-200.0,0.00039557,2]
[422444533,1778950250000,-200.0,0.00039557,2]
[422444531,1778950250000,-200.0,0.00039557,2]
[422444539,1778950250000,-200.0,0.00039557,2]
[422444537,1778950250000,-200.0,0.00039557,2]
[422444528,1778950250000,-200.0,0.00039557,2]
[422444559,1778950250000,-798.25269025,0.00039832,7]
[422444529,1778950250000,-200.0,0.00039557,2]
[422444544,1778950250000,-200.0,0.00039557,2]
[422444527,1778950250000,-200.0,0.00039557,2]
[422444563,1778950250000,-5000.0,0.00039992,15]
[422444552,1778950250000,-2082.01435369,0.00039662,6]
[422444556,1778950250000,-152.0,0.0003978,7]
[422444562,1778950250000,-1000.0,0.00039889,119]
[422444560,1778950250000,-152.0,0.00039859,7]
[422444557,1778950250000,-152.0,0.000398,120]
[422444566,1778950250000,-776.79,0.0004,30]
[422444558,1778950250000,-504.0,0.00039802,15]
[422444555,1778950250000,-300.0,0.00039726,120]
[422444546,1778950250000,-200.0,0.00039557,2]
[422444545,1778950250000,-200.0,0.00039557,2]
[422444548,1778950250000,-200.0,0.00039557,2]
[422444547,1778950250000,-200.0,0.00039557,2]
[422444549,1778950250000,-334.0,0.00039557,2]
[422444565,1778950250000,-1000.0,0.00039999,32]
[422444641,1778950251000,-160.540321,0.00040281,2]
[422444640,1778950251000,-1500.0,0.00040281,10]
[422444649,1778950251000,-1485.75,0.0004029,60]
[422444650,1778950251000,-150.0,0.00040293,2]
[422444637,1778950251000,-299.98309775,0.00040281,60]
[422444639,1778950251000,-226.0,0.00040281,2]
[422444627,1778950251000,-300.0,0.00040281,2]
[422444638,1778950251000,-160.0,0.00040281,2]
[422444628,1778950251000,-500.0,0.00040281,2]
[422444629,1778950251000,-500.0,0.00040281,2]
[422444633,1778950251000,-1500.0,0.00040281,10]
[422444626,1778950251000,-500.0,0.00040281,120]
[422444646,1778950251000,-1948.9,0.0004029,60]
[422444648,1778950251000,-877.58,0.0004029,60]
[422444647,1778950251000,-369.84,0.0004029,60]
[422444654,1778950251000,-150.0,0.00040293,2]
[422444645,1778950251000,-2005.9555727,0.0004029,30]
[422444644,1778950251000,-320.0,0.00040281,2]
[422444643,1778950251000,-500.0,0.00040281,120]
[422444652,1778950251000,-150.0,0.00040293,2]
[422444662,1778950251000,-1830.08120038,0.00040332,120]
[422444663,1778950251000,-495.59196105,0.00040332,120]
[422444651,1778950251000,-3312.41775212,0.00040293,2]
[422444664,1778950251000,-2000.0,0.00040332,120]
[422444653,1778950251000,-17297.33122518,0.00040293,2]
[422444661,1778950251000,-320.52040482,0.00040332,120]
[422444659,1778950251000,-309.72566823,0.00040332,120]
[422444657,1778950251000,-152.0,0.00040324,30]
[422444656,1778950251000,-163.0,0.00040293,11]
[422444658,1778950251000,-1000.0,0.00040331,10]
[422444642,1778950251000,-320.0,0.00040281,2]
[422444632,1778950251000,-150.0,0.00040281,2]
[422444598,1778950251000,-1000.0,0.00040267,14]
[422444630,1778950251000,-500.0,0.00040281,2]
[422444597,1778950251000,-687.0,0.00040266,120]
[422444599,1778950251000,-216.0,0.00040277,120]
[422444600,1778950251000,-172.0,0.00040277,120]
[422444605,1778950251000,-493.45776622,0.00040277,3]
[422444660,1778950251000,-150.0,0.00040332,6]
[422444602,1778950251000,-316.0,0.00040277,120]
[422444601,1778950251000,-151.0,0.00040277,120]
[422444606,1778950251000,-500.0,0.00040281,3]
[422444603,1778950251000,-500.0,0.00040277,3]
[422444607,1778950251000,-500.0,0.00040281,3]
[422444618,1778950251000,-451.73666601,0.00040281,120]
[422444612,1778950251000,-451.73666601,0.00040281,120]
[422444610,1778950251000,-246.09296289,0.00040281,120]
[422444613,1778950251000,-451.73666601,0.00040281,120]
[422444619,1778950251000,-451.73666601,0.00040281,120]
[422444614,1778950251000,-451.73666601,0.00040281,120]
[422444616,1778950251000,-451.73666601,0.00040281,120]
[422444623,1778950251000,-451.73666601,0.00040281,120]
[422444635,1778950251000,-299.98309775,0.00040281,60]
[422444625,1778950251000,-451.73666601,0.00040281,120]
[422444636,1778950251000,-299.98309775,0.00040281,60]
[422444624,1778950251000,-451.73666601,0.00040281,120]
[422444634,1778950251000,-1500.0,0.00040281,10]
[422444631,1778950251000,-500.78186083,0.00040281,2]
[422444620,1778950251000,-451.73666601,0.00040281,120]
[422444611,1778950251000,-451.73666601,0.00040281,120]
[422444608,1778950251000,-157.0,0.00040281,120]
[422444622,1778950251000,-451.73666601,0.00040281,120]
[422444617,1778950251000,-451.73666601,0.00040281,120]
[422444615,1778950251000,-451.73666601,0.00040281,120]
[422444621,1778950251000,-451.73666601,0.00040281,120]
[422444609,1778950251000,-458.32238731,0.00040281,120]
[422444655,1778950251000,-1561.6215432,0.00040293,2]
[422444604,1778950251000,-500.0,0.00040277,3]
[422444666,1778950251000,-158.29,0.00040332,120]
[422444697,1778950251000,-5031.80439434,0.0004074,2]
[422444701,1778950251000,-965.86843543,0.00040875,2]
[422444703,1778950251000,-504.0,0.00040903,17]
[422444700,1778950251000,-1172.0,0.00040875,2]
[422444709,1778950251000,-591402.5873758,0.00040962,2]
[422444707,1778950251000,-330.1693478,0.00040962,2]
[422444710,1778950251000,-3734.1588354,0.00040962,2]
[422444711,1778950251000,-131606.2770643,0.00040962,2]
[422444717,1778950251000,-500.0,0.00041,7]
[422444716,1778950251000,-500.0,0.00041,7]
[422444715,1778950251000,-500.0,0.00041,7]
[422444712,1778950251000,-837.0,0.00040977,2]
[422444714,1778950251000,-500.0,0.00041,7]
[422444708,1778950251000,-72585.0613534,0.00040962,2]
[422444713,1778950251000,-500.0,0.00041,7]